bitfinex/quotes_SOLUSD_20240906
["timestamp","ask_amount","ask_price","bid_price","bid_amount"]
[1725641999599,20.0,126.78,126.74,27.6148]
[1725641999789,27.8877,126.78,126.74,27.6148]
[1725641999984,7.8877,126.78,126.74,27.6148]
[1725642000189,4.35818859,126.84,126.76,7.8889]
[1725642000190,20.0,126.77,126.76,7.8889]
[1725642000500,19.7115,126.83,126.76,19.722]
[1725642000685,31.5064,126.87,126.73,50.0]
[1725642000686,2.95423074,126.86,126.82,19.7127]
[1725642000886,7.8827,126.86,126.83,1.57670948]
[1725642001194,7.8827,126.86,126.82,19.7127]
[1725642001391,19.7057,126.87,126.79,19.7161]
[1725642001605,19.7057,126.87,126.79,27.6025]
[1725642001917,7.8844,126.84,126.79,27.6029]
[1725642002412,7.8835,126.85,126.8,52.8862]
[1725642002705,7.8839,126.84,126.8,52.8862]
[1725642002909,7.8839,126.84,126.8,7.8862]
[1725642003116,7.8839,126.84,126.79,19.7161]
[1725642003733,7.8839,126.84,126.75,39.4459]
[1725642003734,40.7903105,126.87,126.75,12.2651]
[1725642003899,40.7903105,126.87,126.74,31.5477]
[1725642003900,42.9117,126.84,126.74,31.5477]
[1725642004109,1.3783105,126.83,126.72,12.2651]
[1725642004421,19.7246,126.75,126.68,53.69843792]
[1725642004597,20.0,126.74,126.69,19.7326]
[1725642004786,66.3783105,126.83,126.72,7.8914]
[1725642004787,7.889,126.76,126.72,7.8914]
[1725642004992,65.0,126.83,126.74,7.8901]
[1725642005188,7.8858,126.81,126.77,7.888]
[1725642005390,32.8171,126.87,126.77,1.57734419]
[1725642005588,32.8171,126.87,126.76,1.57707682]
[1725642005803,7.8852,126.82,126.77,7.8878]
[1725642006101,7.8852,126.82,126.78,7.8875]
[1725642006301,7.8852,126.82,126.76,21.29847524]
[1725642006302,7.8852,126.82,126.77,7.8881]
[1725642006512,7.886,126.81,126.77,9.46537419]
[1725642006716,1.3783105,126.86,126.75,42.1857]
[1725642006898,19.7149,126.81,126.73,19.7263]
[1725642007212,19.7183,126.79,126.72,13.2006]
[1725642007397,19.7183,126.79,126.67,50.0]
[1725642007398,7.8902,126.74,126.69,7.8927]
[1725642007599,20.0,126.73,126.71,7.8919]
[1725642007908,21.3783105,126.78,126.68,32.9342]
[1725642008096,7.8915,126.72,126.68,21.0944]
[1725642008299,7.8913,126.73,126.68,13.2006]
[1725642008611,7.8913,126.73,126.69,19.7326]
[1725642008995,20.0,126.78,126.71,19.7296]
[1725642009201,20.0,126.81,126.73,7.8906]
[1725642009509,39.7155,126.81,126.71,7.8919]
[1725642009693,41.0938105,126.81,126.71,7.8919]
[1725642009898,41.0938105,126.81,126.7,19.7314]
[1725642009899,7.8904,126.74,126.7,19.7314]
[1725642010104,20.0,126.73,126.68,13.2006]
[1725642010422,1.3783105,126.72,126.67,32.0199]
[1725642010590,1.3783105,126.72,126.64,32.9001]
[1725642010789,20.0,126.72,126.64,40.7962]
[1725642011011,7.8928,126.7,126.65,7.8954]
[1725642011312,51.9897,126.75,126.66,51.57860488]
[1725642011313,7.89,126.75,126.66,51.57860488]
[1725642011514,7.8895,126.75,126.71,7.8918]
[1725642011889,7.8884,126.77,126.72,7.8912]
[1725642012206,7.8866,126.8,126.75,7.8894]
[1725642012399,7.8871,126.79,126.75,7.8894]
[1725642013013,7.8871,126.79,126.74,29.19201112]
[1725642013409,7.8877,126.78,126.74,29.19201112]
[1725642013705,20.0,126.77,126.74,21.30201112]
[1725642013903,19.7154,126.81,126.73,7.8907]
[1725642014099,7.8878,126.78,126.73,7.8907]
[1725642014303,20.0,126.77,126.73,7.8907]
[1725642014501,20.0,126.77,126.74,9.4677158]
[1725642015026,7.8862,126.81,126.76,7.8888]
[1725642015327,1.3783105,126.88,126.78,20.001]
[1725642015624,1.3783105,126.88,126.78,12.1134]
[1725642015625,4.3061952,126.88,126.78,12.1134]
[1725642015806,7.8853,126.82,126.78,12.1134]
[1725642016629,7.8858,126.81,126.78,12.1134]
[1725642017002,7.8858,126.81,126.75,1.57716527]
[1725642017003,19.7118,126.83,126.75,12.4353]
[1725642017224,1.3783105,126.82,126.73,33.2351]
[1725642017421,7.889,126.76,126.73,33.2351]
[1725642017610,20.0,126.75,126.73,33.2351]
[1725642018022,7.8901,126.74,126.73,33.2351]
[1725642018324,20.0,126.78,126.73,33.2351]
[1725642019030,19.7201,126.78,126.73,33.2351]
[1725642019209,20.0,126.77,126.73,33.2351]
[1725642019408,20.0,126.77,126.72,12.4353]
[1725642019604,20.0,126.77,126.69,38.4819]
[1725642019605,19.7228,126.76,126.69,30.5888]
[1725642019817,20.0,126.75,126.69,30.5888]
[1725642020022,7.8901,126.74,126.69,32.16706169]
[1725642020210,20.0,126.75,126.69,50.3209]
[1725642020211,27.8908,126.73,126.69,50.3209]
[1725642020405,7.8919,126.72,126.69,30.5888]
[1725642020611,20.0,126.71,126.69,30.5888]
[1725642021103,7.8932,126.69,126.66,32.9657]
[1725642021323,39.4435,126.77,126.66,32.9657]
[1725642021324,7.8945,126.67,126.66,32.9657]
[1725642021906,7.8945,126.67,126.65,12.1]
[1725642022132,7.8958,126.65,126.63,32.1818]
[1725642022303,7.8952,126.66,126.63,32.1818]
[1725642022503,7.8962,126.65,126.63,32.1818]
[1725642022729,7.8963,126.64,126.62,13.269]
[1725642022912,7.8959,126.65,126.62,13.269]
[1725642023234,20.0,126.64,126.62,13.269]
[1725642023417,19.7296,126.72,126.62,33.0126]
[1725642023609,7.894,126.68,126.63,9.47534885]
[1725642024117,20.0,126.67,126.64,7.8961]
[1725642024314,12.3366,126.75,126.65,45.0]
[1725642024629,12.3366,126.75,126.65,9.47416473]
[1725642024811,19.7208,126.77,126.66,21.31596473]
[1725642025013,7.8902,126.74,126.68,7.8934]
[1725642025222,272.4921,126.82,126.68,14.78471875]
[1725642025536,2.91925935,126.83,126.71,50.0]
[1725642025751,12.1921,126.86,126.74,19.7247]
[1725642025752,1.3783105,126.85,126.74,19.7247]
[1725642025917,7.8853,126.82,126.77,7.8878]
[1725642026110,7.8846,126.83,126.78,7.8874]
[1725642026307,7.8853,126.82,126.77,7.8881]
[1725642027330,7.8853,126.82,126.78,7.8875]
[1725642027535,7.8863,126.81,126.76,27.6097]
[1725642027714,12.1921,126.86,126.78,19.7186]
[1725642028047,11.37829844,126.91,126.78,19.7186]
[1725642028048,7.8834,126.85,126.78,19.7186]
[1725642028211,7.8834,126.85,126.8,7.8862]
[1725642028413,2.90921226,126.88,126.78,19.7186]
[1725642028626,7.8841,126.84,126.79,7.8869]
[1725642029616,20.0,126.83,126.79,7.8869]
[1725642030229,20.0,126.83,126.78,19.7186]
[1725642030536,1.3783105,126.87,126.81,7.8852]
[1725642030723,1.3783105,126.87,126.8,19.7155]
[1725642030724,7.8835,126.85,126.8,27.6017]
[1725642031037,7.8841,126.84,126.8,27.6017]
[1725642031426,7.8841,126.84,126.8,19.7155]
[1725642032126,20.0,126.83,126.8,19.7155]
[1725642033131,20.0,126.83,126.8,27.6018]
[1725642033431,27.8846,126.83,126.78,7.8875]
[1725642033634,20.0,126.83,126.77,19.7198]
[1725642033821,1.3783105,126.82,126.76,43.7726]
[1725642034028,7.8884,126.77,126.73,7.8906]
[1725642034233,20.0,126.76,126.73,7.8906]
[1725642035214,20.0,126.77,126.73,7.8906]
[1725642035420,20.0,126.77,126.73,1.57799151]
[1725642035633,20.0,126.77,126.72,45.0802]
[1725642035634,20.0,126.79,126.76,7.8889]
[1725642035837,20.0,126.81,126.75,27.6128]
[1725642036027,21.3783105,126.81,126.72,64.8079]
[1725642036230,7.8884,126.77,126.73,7.8903]
[1725642036428,39.7151,126.81,126.74,7.8901]
[1725642036721,7.8875,126.79,126.75,7.8895]
[1725642036930,20.0,126.78,126.75,7.8895]
[1725642037343,20.0,126.78,126.76,7.8887]
[1725642037548,20.0,126.79,126.76,7.8887]
[1725642037840,20.0,126.79,126.74,19.7251]
[1725642037841,27.8871,126.79,126.75,7.8895]
[1725642038441,1.3783105,126.86,126.76,21.29900959]
[1725642038622,1.3783105,126.86,126.76,19.7214]
[1725642038821,7.8847,126.83,126.78,27.6059]
[1725642039039,7.8847,126.83,126.79,7.887]
[1725642039524,7.8847,126.83,126.78,19.7185]
[1725642039525,7.8847,126.83,126.78,27.6059]
[1725642039731,1.3783105,126.83,126.75,19.7224]
[1725642039929,7.8866,126.8,126.76,7.8885]
[1725642040329,7.8847,126.83,126.77,21.29804449]
[1725642040750,7.8847,126.83,126.77,19.7205]
[1725642041040,7.8852,126.82,126.77,19.7205]
[1725642041265,7.8858,126.81,126.77,27.6086]
[1725642041541,7.8872,126.79,126.75,7.8894]
[1725642041926,20.0,126.78,126.76,19.7219]
[1725642042127,7.8862,126.81,126.77,7.8877]
[1725642042321,46.3783105,126.85,126.78,19.7186]
[1725642042322,20.0,126.8,126.78,19.7186]
[1725642042646,20.0,126.8,126.79,7.887]
[1725642042951,20.0,126.8,126.78,19.7186]
[1725642042952,22.75545034,126.87,126.78,19.7186]
[1725642043123,19.7088,126.85,126.78,19.7186]
[1725642043447,1.3783105,126.84,126.78,19.7186]
[1725642043949,7.8864,126.8,126.76,7.8887]
[1725642044251,19.7116,126.83,126.76,7.8887]
[1725642044252,27.887,126.79,126.76,7.8887]
[1725642044432,20.0,126.79,126.76,7.8887]
[1725642044632,20.0,126.79,126.77,19.7195]
[1725642044835,19.707,126.86,126.76,1.5775884]
[1725642044836,20.0,126.85,126.76,1.5775884]
[1725642045041,19.707,126.86,126.75,39.4446]
[1725642045042,22.72786308,126.86,126.79,19.7176]
[1725642045240,7.8849,126.83,126.79,27.6044]
[1725642045550,19.7099,126.84,126.76,19.7209]
[1725642045855,7.8855,126.82,126.78,7.8874]
[1725642046027,19.7099,126.84,126.76,19.7209]
[1725642046028,21.0882105,126.84,126.76,19.7209]
[1725642046362,7.8868,126.8,126.76,27.6094]
[1725642046652,20.0,126.79,126.77,7.8882]
[1725642046959,20.0,126.8,126.76,19.7209]
[1725642047122,7.887,126.79,126.76,19.7209]
[1725642047440,21.0929105,126.81,126.74,19.7253]
[1725642047623,21.0929105,126.81,126.73,7.8904]
[1725642047624,20.0,126.8,126.73,7.8904]
[1725642047824,1.3783105,126.79,126.73,7.8904]
[1725642048023,7.8885,126.77,126.73,7.8906]
[1725642048225,20.0,126.76,126.72,64.8072]
[1725642048447,7.8883,126.77,126.73,7.8906]
[1725642048656,27.889,126.76,126.72,72.6983]
[1725642048942,20.0,126.76,126.7,7.8921]
[1725642049143,7.8903,126.74,126.7,7.8921]
[1725642049454,7.8914,126.72,126.69,32.1368]
[1725642049756,7.892,126.71,126.68,32.1569]
[1725642049954,7.8933,126.69,126.65,19.9854]
[1725642050746,21.1055105,126.73,126.65,31.8288]
[1725642050747,22.69801377,126.73,126.65,31.8288]
[1725642050930,20.0,126.72,126.65,31.8288]
[1725642051265,20.0,126.72,126.65,12.0898]
[1725642051432,20.0,126.72,126.65,19.9854]
[1725642051433,7.8934,126.69,126.65,19.9854]
[1725642052150,1.3783105,126.71,126.65,12.0898]
[1725642052346,1.3783105,126.71,126.62,20.2718]
[1725642052347,1.3783105,126.7,126.62,20.2718]
[1725642052560,7.8956,126.66,126.62,12.3744]
[1725642052768,41.1104105,126.7,126.62,12.3744]
[1725642052769,20.0,126.65,126.62,12.3744]
[1725642053066,20.0,126.65,126.6,49.8088]
[1725642053067,20.0,126.65,126.6,57.7075]
[1725642053243,20.0,126.65,126.6,37.9615]
[1725642053437,7.8959,126.65,126.6,37.9615]
[1725642053633,20.0,126.64,126.62,7.8971]
[1725642053950,20.0,126.64,126.61,7.8981]
[1725642054654,20.0,126.64,126.58,32.1239]
[1725642054655,7.8979,126.62,126.58,32.1239]
[1725642054964,7.896,126.65,126.6,7.8983]
[1725642055145,39.7326,126.7,126.61,7.8981]
[1725642055146,20.0,126.64,126.61,7.8981]
[1725642055346,7.8952,126.66,126.61,7.8981]
[1725642055559,20.0,126.65,126.62,7.8974]
[1725642055767,20.0,126.65,126.61,7.8981]
[1725642056064,20.0,126.65,126.62,19.7434]
[1725642056257,20.0,126.65,126.64,7.8963]
[1725642056573,20.0,126.65,126.62,19.7434]
[1725642056866,21.3783105,126.71,126.62,19.7434]
[1725642057049,7.8927,126.7,126.65,27.6348]
[1725642057256,22.65113823,126.75,126.66,7.8949]
[1725642057569,7.8928,126.7,126.65,27.6349]
[1725642058777,20.0,126.69,126.65,27.6347]
[1725642059072,20.0,126.69,126.66,7.8946]
[1725642059376,27.8921,126.71,126.66,7.8946]
[1725642059745,20.0,126.71,126.64,30.3453]
[1725642059946,7.8941,126.68,126.64,38.2416]
[1725642060151,7.8945,126.67,126.64,30.3453]
[1725642060381,7.894,126.68,126.63,7.8967]
[1725642060670,7.8958,126.65,126.6,38.9676]
[1725642060975,20.0,126.67,126.6,31.0689]
[1725642060976,39.7371,126.67,126.6,31.0689]
[1725642061181,39.7371,126.67,126.56,60.714]
[1725642061182,7.8984,126.61,126.56,60.714]
[1725642061471,21.1184105,126.65,126.56,52.8128]
[1725642061679,7.8983,126.61,126.56,60.7136]
[1725642061854,7.8989,126.6,126.56,60.7136]
[1725642062175,7.8996,126.59,126.56,52.8128]
[1725642062378,7.8996,126.59,126.56,19.7525]
[1725642062552,20.0,126.58,126.56,19.7525]
[1725642063578,20.0,126.58,126.53,1.58022205]
[1725642063579,20.0,126.59,126.53,19.7572]
[1725642063882,20.0,126.59,126.5,40.285]
[1725642063883,7.902,126.55,126.5,40.285]
[1725642064085,20.0,126.54,126.5,40.285]
[1725642064377,7.8999,126.59,126.54,7.9021]
[1725642064579,19.745,126.62,126.52,19.7591]
[1725642064580,20.0,126.58,126.53,7.9031]
[1725642064790,7.9008,126.57,126.52,27.6628]
[1725642064963,20.0,126.56,126.52,27.6628]
[1725642065150,20.0,126.56,126.52,19.7591]
[1725642065353,7.8981,126.62,126.57,7.9006]
[1725642065579,7.8984,126.61,126.56,19.7525]
[1725642065759,7.8971,126.63,126.58,7.8997]
[1725642066554,7.8977,126.62,126.58,7.8997]
[1725642066992,7.8983,126.61,126.57,7.9003]
[1725642067279,7.8965,126.64,126.59,7.8992]
[1725642067777,7.8965,126.64,126.58,19.7496]
[1725642067778,7.8965,126.64,126.6,7.8987]
[1725642067984,7.8965,126.64,126.59,7.8993]
[1725642068176,7.897,126.63,126.58,27.6496]
[1725642068375,7.8977,126.62,126.58,27.6496]
[1725642068578,20.0,126.61,126.58,27.6496]
[1725642068964,27.8982,126.61,126.57,7.9007]
[1725642069160,20.0,126.61,126.55,19.7539]
[1725642069358,7.9008,126.57,126.53,7.9028]
[1725642070079,20.0,126.61,126.53,1.58037773]
[1725642070259,20.0,126.61,126.58,7.8999]
[1725642070587,32.5882,126.68,126.59,7.8991]
[1725642070764,32.5882,126.68,126.58,19.7496]
[1725642070765,19.7383,126.66,126.58,19.7496]
[1725642070966,1.3783105,126.65,126.55,19.7539]
[1725642071982,19.7414,126.64,126.56,7.9008]
[1725642072169,65.0,126.63,126.56,7.9008]
[1725642072986,7.8993,126.6,126.56,7.9008]
[1725642073169,72.8974,126.63,126.59,7.8992]
[1725642073485,7.8983,126.61,126.57,27.6516]
[1725642073658,20.0,126.6,126.57,27.6516]
[1725642074079,7.8975,126.63,126.59,7.899]
[1725642074280,39.4753,126.67,126.58,19.7493]
[1725642074281,20.0,126.62,126.58,19.7493]
[1725642074494,20.0,126.62,126.55,39.5082]
[1725642074495,7.8999,126.59,126.55,7.902]
[1725642074789,1.3783105,126.61,126.55,27.6558]
[1725642074790,27.9001,126.58,126.55,27.6558]
[1725642075085,7.9001,126.58,126.55,19.7538]
[1725642075465,20.0,126.57,126.54,7.9025]
[1725642075878,27.9008,126.57,126.53,7.9031]
[1725642076078,7.9016,126.56,126.52,59.1557]
[1725642076467,20.0,126.55,126.52,27.662]
[1725642076894,20.0,126.55,126.53,7.9031]
[1725642077095,27.9014,126.56,126.53,7.9031]
[1725642077292,27.9014,126.56,126.52,27.6619]
[1725642077763,7.902,126.55,126.52,27.6619]
[1725642077965,9.2809105,126.54,126.5,20.5232]
[1725642078187,7.9021,126.55,126.51,7.9044]
[1725642078392,20.0,126.56,126.5,12.6183]
[1725642078583,20.0,126.56,126.53,7.903]
[1725642078765,20.0,126.56,126.53,27.6609]
[1725642079099,7.9005,126.58,126.54,7.9025]
[1725642079390,39.4626,126.71,126.55,21.3352191]
[1725642079391,19.7421,126.64,126.55,21.3352191]
[1725642079691,7.8984,126.61,126.57,7.9006]
[1725642079866,7.8984,126.61,126.55,19.7549]
[1725642079867,1.3783105,126.63,126.55,19.7549]
[1725642080061,1.3783105,126.62,126.55,19.7549]
[1725642080284,7.8995,126.59,126.55,27.6565]
[1725642080794,7.8972,126.63,126.59,7.899]
[1725642080971,7.8972,126.63,126.59,7.8994]
[1725642081167,33.7557105,126.67,126.58,19.7499]
[1725642081168,19.7383,126.66,126.58,19.7499]
[1725642081485,7.8971,126.63,126.59,7.8994]
[1725642082569,7.8976,126.62,126.58,27.6499]
[1725642082972,7.8974,126.63,126.59,7.8994]
[1725642083383,20.0,126.62,126.59,7.8994]
[1725642084481,7.8943,126.68,126.64,7.896]
[1725642084668,3.02606531,126.7,126.64,7.8959]
[1725642084871,7.8933,126.69,126.62,31.2236]
[1725642085081,7.8933,126.69,126.65,7.8956]
[1725642085298,1.3783105,126.68,126.62,44.4891]
[1725642085473,7.8959,126.65,126.61,7.8982]
[1725642085794,19.7356,126.68,126.58,44.4891]
[1725642085998,1.3783105,126.67,126.58,44.4891]
[1725642086174,7.8962,126.65,126.6,7.8987]
[1725642086375,20.0,126.64,126.59,19.7482]
[1725642086596,27.8959,126.65,126.59,19.7482]
[1725642086776,20.0,126.65,126.61,19.7441]
[1725642086982,7.8955,126.66,126.62,7.8971]
[1725642087188,20.0,126.65,126.62,7.8971]
[1725642087371,27.8959,126.65,126.61,27.6423]
[1725642087568,20.0,126.65,126.61,19.7441]
[1725642087777,7.8934,126.69,126.64,7.8963]
[1725642088070,1.3783105,126.71,126.63,27.6389]
[1725642088970,7.8949,126.67,126.63,27.6389]
[1725642089300,20.0,126.66,126.64,7.8963]
[1725642089594,2.97454387,126.72,126.66,7.8947]
[1725642089889,17.65012068,126.74,126.65,19.739]
[1725642090120,7.8939,126.68,126.65,19.739]
[1725642090412,7.8934,126.69,126.65,27.6347]
[1725642090909,7.8928,126.7,126.66,7.8951]
[1725642091111,20.0,126.69,126.66,7.8951]
[1725642091806,27.8933,126.69,126.65,19.739]
[1725642092186,20.0,126.69,126.62,27.6401]
[1725642092421,7.8949,126.67,126.63,7.8965]
[1725642093212,7.8941,126.68,126.64,7.8963]
[1725642093583,20.0,126.7,126.65,1.57897955]
[1725642093781,35.99861018,126.74,126.65,1.57897955]
[1725642093782,20.0,126.73,126.66,19.7377]
[1725642093988,21.3783105,126.73,126.66,19.7377]
[1725642094218,7.8937,126.69,126.66,19.7377]
[1725642094585,27.8943,126.68,126.65,43.1198]
[1725642094807,7.8945,126.67,126.64,7.8963]
[1725642095009,7.8953,126.66,126.63,19.7423]
[1725642095214,20.0,126.68,126.62,45.3925]
[1725642095215,7.8958,126.65,126.62,45.3925]
[1725642095890,7.8959,126.65,126.62,45.3925]
[1725642096084,20.0,126.68,126.61,7.898]
[1725642096085,39.7352,126.68,126.61,7.898]
[1725642096301,1.3783105,126.67,126.61,7.898]
[1725642096606,19.7383,126.66,126.59,43.3191]
[1725642096789,7.8976,126.62,126.59,43.3191]
[1725642096989,7.8976,126.62,126.59,51.2185]
[1725642097189,7.8972,126.63,126.59,51.2185]
[1725642097515,20.0,126.68,126.6,1.57966691]
[1725642097717,19.7298,126.72,126.6,51.57966691]
[1725642097896,7.8929,126.7,126.66,7.8951]
[1725642098799,7.8933,126.69,126.65,27.6347]
[1725642100118,7.8946,126.67,126.63,7.8967]
[1725642100424,7.8941,126.68,126.64,7.8962]
[1725642102001,7.8956,126.66,126.62,19.7426]
[1725642102206,7.8956,126.66,126.59,82.8156]
[1725642102207,1.3783105,126.66,126.59,63.0666]
[1725642102505,9.99998794,126.71,126.56,12.9329]
[1725642102506,7.8997,126.59,126.56,12.9329]
[1725642102712,7.899,126.6,126.56,20.8342]
[1725642103317,19.7459,126.61,126.52,65.459]
[1725642103496,1.3783105,126.59,126.52,65.459]
[1725642103816,65.0,126.6,126.52,65.459]
[1725642104406,7.9008,126.57,126.52,73.3624]
[1725642104721,7.9028,126.54,126.5,7.9049]
[1725642105010,7.9033,126.53,126.49,27.6693]
[1725642105223,7.9021,126.55,126.51,7.9044]
[1725642106729,27.9014,126.56,126.52,7.9038]
[1725642106933,27.9014,126.56,126.51,7.9043]
[1725642107724,27.9014,126.56,126.52,7.9038]
[1725642107912,20.0,126.56,126.52,1.58051975]
[1725642108118,20.0,126.6,126.52,1.58051975]
[1725642108320,3.03960484,126.61,126.54,7.9026]
[1725642108513,19.7449,126.62,126.54,7.9026]
[1725642108711,7.8995,126.59,126.55,7.9019]
[1725642108932,7.8988,126.61,126.56,7.901]
[1725642109231,7.899,126.6,126.56,7.901]
[1725642109529,15.43410543,126.63,126.55,27.6561]
[1725642109530,7.8995,126.59,126.55,27.6561]
[1725642109839,15.43410543,126.63,126.55,27.6561]
[1725642109840,7.899,126.6,126.55,27.6561]
[1725642110206,20.0,126.59,126.55,27.6561]
[1725642110624,20.0,126.59,126.56,7.9012]
[1725642111318,27.899,126.6,126.56,7.9012]
[1725642111719,20.0,126.6,126.56,51.6818]
[1725642112527,20.0,126.6,126.56,51.6817]
[1725642112928,20.0,126.6,126.56,31.3767]
[1725642112929,7.9,126.59,126.56,31.3767]
[1725642113217,7.9007,126.57,126.53,19.9396]
[1725642113531,20.0,126.6,126.53,12.0364]
[1725642113532,7.9015,126.56,126.53,12.0364]
[1725642113935,7.9009,126.57,126.53,12.0364]
[1725642114139,7.9009,126.57,126.53,19.9394]
[1725642114309,7.9009,126.57,126.53,39.697]
[1725642114833,7.9003,126.58,126.54,7.9023]
[1725642115026,20.0,126.57,126.55,7.9019]
[1725642115646,20.0,126.58,126.55,7.9019]
[1725642117229,20.0,126.58,126.53,33.37409328]
[1725642117230,27.9003,126.58,126.53,39.6965]
[1725642117412,7.9022,126.55,126.53,12.0364]
[1725642117613,7.9016,126.56,126.53,12.0364]
[1725642118023,7.9008,126.57,126.53,19.9395]
[1725642118220,20.0,126.56,126.53,19.9395]
[1725642119831,27.9014,126.56,126.53,12.0364]
[1725642120253,20.0,126.56,126.52,30.8849]
[1725642120536,20.0,126.58,126.52,21.33986273]
[1725642120743,20.0,126.6,126.52,1.58076273]
[1725642120942,19.744,126.63,126.52,1.58076273]
[1725642121242,32.262,126.65,126.56,32.9545]
[1725642121542,33.6403105,126.65,126.56,52.7075]
[1725642121841,7.8995,126.59,126.56,52.7075]
[1725642122449,7.8991,126.6,126.56,60.6088]
[1725642122618,20.0,126.59,126.56,60.6088]
[1725642123017,20.0,126.59,126.57,7.9007]
[1725642124124,20.0,126.59,126.56,60.6086]
[1725642124746,20.0,126.59,126.57,20.8107]
[1725642124945,20.0,126.6,126.57,20.8107]
[1725642125819,27.899,126.6,126.57,12.9103]
[1725642126021,27.899,126.6,126.54,39.9213]
[1725642126022,7.9001,126.58,126.54,39.9213]
[1725642126233,7.8996,126.59,126.55,7.9015]
[1725642126746,7.8996,126.59,126.56,7.9013]
[1725642127066,20.0,126.6,126.58,7.8998]
[1725642127215,20.0,126.6,126.57,7.9003]
[1725642127421,20.0,126.6,126.58,7.9]
[1725642127616,20.0,126.61,126.58,7.9]
[1725642128118,2.95642002,126.65,126.58,19.7489]
[1725642128341,7.8968,126.64,126.6,7.8986]
[1725642128837,7.897,126.63,126.6,7.8986]
[1725642129041,40.8526105,126.67,126.56,19.7532]
[1725642129242,7.8996,126.59,126.56,27.6542]
[1725642129625,7.8996,126.59,126.56,19.7532]
[1725642129947,19.7439,126.63,126.55,7.9017]
[1725642129948,7.9002,126.58,126.55,7.9018]
[1725642130117,19.7455,126.62,126.55,7.9018]
[1725642130322,20.0,126.61,126.55,41.08912821]
[1725642130626,10.87001059,126.68,126.64,7.8958]
[1725642130830,12.274,126.72,126.63,19.7417]
[1725642131040,9.99998794,126.78,126.67,7.8942]
[1725642131041,7.8922,126.71,126.67,7.8942]
[1725642131226,7.8909,126.73,126.67,19.7359]
[1725642131427,13.0194,126.8,126.69,12.1959]
[1725642131722,30.4976,126.81,126.69,12.1959]
[1725642131723,7.8863,126.81,126.75,7.8893]
[1725642131932,7.8857,126.82,126.76,7.8889]
[1725642132127,50.206,126.85,126.74,19.7249]
[1725642132128,7.8861,126.81,126.75,9.46696644]
[1725642132424,7.8864,126.8,126.74,27.6145]
[1725642132728,7.8858,126.81,126.75,7.8892]
[1725642132948,7.8852,126.82,126.76,1.57746507]
[1725642133241,19.7084,126.85,126.75,52.889]
[1725642133242,7.8858,126.81,126.75,52.889]
[1725642133450,290.7976,126.9,126.8,7.8864]
[1725642133749,290.7976,126.9,126.8,7.8861]
[1725642133750,7.8833,126.85,126.8,7.8861]
[1725642133924,7.8827,126.86,126.8,9.46295665]
[1725642134132,7.8827,126.86,126.8,1.57685665]
[1725642134445,7.8827,126.86,126.77,89.761]
[1725642134446,7.8827,126.86,126.78,9.46442419]
[1725642134638,7.8833,126.85,126.79,45.0]
[1725642134840,19.6989,126.92,126.81,31.2858]
[1725642135170,19.6922,126.96,126.84,12.783]
[1725642135368,1.3783105,126.94,126.84,12.783]
[1725642135865,7.8814,126.89,126.84,12.783]
[1725642136364,7.8814,126.88,126.84,12.783]
[1725642136748,7.8815,126.88,126.84,12.783]
[1725642137067,1.3783105,126.87,126.81,31.2858]
[1725642137367,39.3933,126.93,126.8,12.8796]